bitfinex/quotes_SOLUSD_20250402
["timestamp","ask_amount","ask_price","bid_price","bid_amount"]
[1743601092729,8.24818115,126.55,126.54,295.58]
[1743601093127,11.59575475,126.55,126.54,295.58]
[1743601094205,20.34568115,126.53,126.52,295.58]
[1743601095220,8.25138115,126.49,126.48,295.6]
[1743601095404,8.25138115,126.49,126.48,304.42]
[1743601098517,0.34568115,126.46,126.45,0.063]
[1743601099738,7.9064,126.48,126.45,8.823]
[1743601099930,8.25168115,126.49,126.45,8.823]
[1743601100228,0.34568115,126.47,126.45,8.823]
[1743601100425,27.6704,126.49,126.45,8.823]
[1743601100728,0.34568115,126.47,126.45,8.823]
[1743601100913,0.34568115,126.46,126.45,8.823]
[1743601101329,8.25328115,126.46,126.45,0.063]
[1743601101515,8.25328115,126.46,126.45,8.823]
[1743601102028,8.25328115,126.46,126.45,8.803]
[1743601102346,8.25328115,126.46,126.45,0.063]
[1743601102633,8.25328115,126.46,126.45,8.803]
[1743601103833,0.34568115,126.4,126.39,295.78]
[1743601104217,73.3867,126.46,126.39,295.78]
[1743601104218,0.34568115,126.42,126.39,295.78]
[1743601104614,73.3867,126.46,126.39,295.78]
[1743601104615,0.34568115,126.43,126.39,295.78]
[1743601104818,0.34568115,126.43,126.4,8.72]
[1743601105130,0.34568115,126.42,126.4,8.72]
[1743601105335,7.9101,126.42,126.4,8.72]
[1743601105828,8.25538115,126.43,126.4,8.72]
[1743601106137,0.34568115,126.42,126.4,8.72]
[1743601106434,8.25538115,126.43,126.4,8.72]
[1743601107018,8.25538115,126.43,126.37,0.063]
[1743601107019,20.0,126.4,126.37,0.063]
[1743601107221,0.34568115,126.38,126.37,0.063]
[1743601107522,8.25828115,126.38,126.37,0.063]
[1743601107728,7.9126,126.38,126.37,0.063]
[1743601108126,8.25828115,126.38,126.37,0.063]
[1743601108325,8.80956015,126.38,126.37,0.063]
[1743601108640,8.463879,126.38,126.37,0.063]
[1743601109616,8.80956015,126.38,126.37,0.063]
[1743601109821,8.463879,126.38,126.37,0.063]
[1743601110138,0.551279,126.38,126.37,0.063]
[1743601110520,0.551279,126.38,126.37,45.47161043]
[1743601110718,7.9091,126.44,126.4,18.64964886]
[1743601110925,7.9091,126.44,126.41,8.82]
[1743601111236,7.9091,126.44,126.41,28.82]
[1743601111439,8.25388115,126.45,126.41,8.82]
[1743601112940,0.34568115,126.39,126.38,295.9]
[1743601113541,8.25768115,126.39,126.38,295.9]
[1743601113741,8.25768115,126.39,126.38,304.74]
[1743601114040,8.25768115,126.39,126.38,295.9]
[1743601115345,8.25768115,126.39,126.38,304.72]
[1743601115651,8.25828115,126.38,126.37,296.003]
[1743601116225,0.34568115,126.33,126.32,0.063]
[1743601117055,0.34568115,126.33,126.32,8.883]
[1743601117627,8.26138115,126.33,126.32,8.883]
[1743601117947,8.26138115,126.33,126.32,8.903]
[1743601118631,0.34568115,126.32,126.31,0.0001]
[1743601119551,28.26208115,126.32,126.31,0.0001]
[1743601120844,8.26208115,126.32,126.31,0.0001]
[1743601121635,0.34568115,126.31,126.26,20.0]
[1743601121837,8.26208115,126.32,126.28,20.0]
[1743601122045,6.3424,126.37,126.25,6.5374]
[1743601122046,0.34568115,126.35,126.3,20.0]
[1743601122751,7.9147,126.35,126.31,296.08]
[1743601122948,0.03,126.38,126.33,6.36896157]
[1743601123128,8.28868115,126.38,126.34,20.0]
[1743601123334,8.28868115,126.38,126.35,8.8]
[1743601123557,7.9138,126.36,126.35,8.8]
[1743601123854,8.25948115,126.36,126.35,8.8]
[1743601126050,0.34568115,126.34,126.31,296.08]
[1743601126350,0.34568115,126.32,126.31,296.08]
[1743601127446,0.34568115,126.32,126.24,20.063]
[1743601127652,0.34568115,126.31,126.3,296.08]
[1743601127841,0.34568115,126.31,126.3,304.86]
[1743601128042,0.34568115,126.3,126.29,296.12]
[1743601130161,8.26328115,126.3,126.29,304.9]
[1743601130747,28.05738115,126.3,126.24,0.063]
[1743601131146,0.34568115,126.27,126.24,0.063]
[1743601131655,0.34568115,126.28,126.24,0.063]
[1743601131850,0.34568115,126.27,126.24,0.063]
[1743601132072,7.9201,126.26,126.24,0.063]
[1743601132367,8.26578115,126.26,126.24,0.063]
[1743601132541,0.34568115,126.25,126.24,0.063]
[1743601132738,0.34568115,126.25,126.24,296.223]
[1743601133058,0.34568115,126.25,126.24,304.963]
[1743601133364,8.26578115,126.26,126.24,304.963]
[1743601133665,7.9201,126.26,126.24,304.963]
[1743601134035,7.9195,126.27,126.24,304.963]
[1743601134236,0.34568115,126.26,126.24,304.963]
[1743601134450,28.06398115,126.27,126.24,304.963]
[1743601134653,0.34568115,126.25,126.24,304.963]
[1743601135569,0.34568115,126.26,126.24,304.963]
[1743601136374,0.34568115,126.29,126.24,304.963]
[1743601136560,0.34568115,126.26,126.24,304.963]
[1743601137276,0.34568115,126.26,126.25,8.7]
[1743601138366,8.26578115,126.26,126.25,8.7]
[1743601140165,8.26578115,126.26,126.24,296.223]
[1743601140460,0.34568115,126.25,126.24,296.223]
[1743601140642,0.34568115,126.25,126.24,304.883]
[1743601141352,0.34568115,126.29,126.24,304.883]
[1743601141554,7.9182,126.29,126.25,38.64964886]
[1743601141764,7.9177,126.3,126.26,0.14216157]
[1743601142172,0.34568115,126.29,126.26,0.14216157]
[1743601142469,7.9189,126.28,126.25,44.88174886]
[1743601142680,0.34568115,126.31,126.26,0.14216157]
[1743601142970,8.26108115,126.34,126.29,18.64964886]
[1743601143165,7.9154,126.34,126.31,18.64964886]
[1743601143371,8.26108115,126.34,126.31,18.64964886]
[1743601143594,7.9154,126.34,126.31,18.64964886]
[1743601143796,0.34568115,126.37,126.33,18.64964886]
[1743601144097,0.03,126.38,126.34,296.26]
[1743601144266,0.37568115,126.38,126.35,8.64]
[1743601144466,7.9428,126.38,126.35,8.64]
[1743601144865,8.28848115,126.38,126.35,8.64]
[1743601145068,0.03,126.36,126.35,8.64]
[1743601145463,0.03,126.36,126.35,27.28964886]
[1743601145664,0.03,126.36,126.35,27.43181043]
[1743601146266,0.03,126.36,126.35,35.34631043]
[1743601146599,0.03,126.36,126.35,36.92828259]
[1743601146799,0.03,126.38,126.37,40.0]
[1743601147097,20.0,126.46,126.38,0.14216157]
[1743601147476,20.14216157,126.46,126.37,16.10290587]
[1743601147789,8.47091413,126.48,126.38,8.64]
[1743601148001,79.07,126.47,126.38,8.64]
[1743601148179,79.07,126.47,126.38,24.74290587]
[1743601148376,106.7445,126.47,126.38,24.74290587]
[1743601148583,27.6745,126.47,126.38,24.74290587]
[1743601149091,27.6745,126.47,126.44,9.415e-05]
[1743601149271,27.6745,126.47,126.39,16.10290587]
[1743601149670,20.0,126.44,126.39,16.10290587]
[1743601150195,20.0,126.44,126.37,0.14216157]
[1743601150373,27.6745,126.47,126.41,0.14216157]
[1743601150575,27.6701,126.49,126.42,8.6]
[1743601150881,18.79181043,126.48,126.37,18.64964886]
[1743601151295,20.0,126.45,126.38,0.14216157]
[1743601151493,20.0,126.45,126.37,18.64964886]
[1743601151683,20.0,126.46,126.37,18.64964886]
[1743601151879,20.0,126.44,126.36,48.53198528]
[1743601152105,20.0,126.44,126.37,8.6]
[1743601152583,27.6832,126.43,126.37,27.24964886]
[1743601152787,27.6832,126.43,126.38,296.04]
[1743601154113,67.2307,126.43,126.38,296.04]
[1743601154801,20.0,126.4,126.38,296.04]
[1743601155699,27.6832,126.43,126.38,296.04]
[1743601156910,61.1615,126.43,126.39,8.56]
[1743601157105,61.1615,126.43,126.38,296.04]
[1743601157302,61.1615,126.43,126.39,8.56]
[1743601157499,0.14216157,126.42,126.38,296.04]
[1743601157691,0.14216157,126.42,126.39,8.56]
[1743601157891,20.0,126.39,126.36,296.02]
[1743601158119,20.0,126.39,126.36,8.54]
[1743601158295,20.0,126.39,126.34,296.02]
[1743601158711,0.14216157,126.42,126.34,296.02]
[1743601158911,7.912,126.39,126.34,296.02]
[1743601159416,27.692,126.39,126.35,8.56]
[1743601160408,7.912,126.39,126.36,18.64964886]
[1743601160794,0.03,126.4,126.37,296.04]
[1743601163619,0.03,126.4,126.38,18.64964886]
[1743601163823,0.03,126.4,126.39,38.79181043]
[1743601164828,0.03,126.4,126.39,18.64964886]
[1743601165011,0.03,126.4,126.38,18.64964886]
[1743601165408,0.03,126.4,126.36,6.215]
[1743601165609,0.03,126.4,126.37,0.14216157]
[1743601166420,0.03,126.4,126.37,38.79181043]
[1743601167012,0.03,126.4,126.37,46.70491043]
[1743601167401,0.03,126.4,126.37,38.79181043]
[1743601167819,0.03,126.4,126.37,18.79181043]
[1743601168020,0.03,126.4,126.38,8.58]
[1743601168410,0.03,126.4,126.39,8.6]
[1743601169012,20.03,126.4,126.39,8.6]
[1743601169726,20.03,126.4,126.34,18.64964886]
[1743601169911,20.03,126.4,126.35,8.58]
[1743601170116,20.03,126.4,126.34,18.64964886]
[1743601170317,20.03,126.4,126.35,8.56]
[1743601171137,27.692,126.39,126.35,8.623]
[1743601172804,27.692,126.39,126.36,296.02]
[1743601173528,19.78,126.39,126.36,296.02]
[1743601174126,7.9413,126.4,126.36,296.02]
[1743601174434,27.7197,126.4,126.36,296.02]
[1743601175425,67.2766,126.4,126.36,296.02]
[1743601175833,67.2766,126.4,126.37,8.54]
[1743601176140,67.2766,126.4,126.36,296.02]
[1743601176515,106.8335,126.4,126.36,296.02]
[1743601177235,20.0,126.38,126.37,8.52]
[1743601177531,20.0,126.37,126.36,296.02]
[1743601177746,7.9138,126.36,126.35,296.083]
[1743601178718,7.9138,126.36,126.35,304.603]
[1743601180436,20.0,126.37,126.35,304.603]
[1743601180635,106.8335,126.4,126.35,304.603]
[1743601181856,20.0,126.37,126.35,304.603]
[1743601182347,7.9138,126.36,126.35,304.603]
[1743601183125,27.6985,126.36,126.31,18.71264886]
[1743601183320,27.6985,126.36,126.32,296.06]
[1743601184340,27.6942,126.38,126.32,296.06]
[1743601184940,27.6942,126.38,126.33,8.46]
[1743601185640,67.2574,126.38,126.33,8.46]
[1743601186648,27.6942,126.38,126.33,8.46]
[1743601186854,27.6942,126.38,126.34,18.64964886]
[1743601187229,27.6942,126.38,126.35,296.1]
[1743601187430,67.2766,126.4,126.35,296.1]
[1743601188245,106.8335,126.4,126.35,296.1]
[1743601189858,27.7197,126.4,126.36,18.64964886]
[1743601190232,27.7197,126.4,126.35,296.1]
[1743601190941,67.2766,126.4,126.35,296.1]
[1743601191337,27.7197,126.4,126.35,296.1]
[1743601191532,0.03,126.4,126.38,18.64964886]
[1743601191848,0.03,126.4,126.39,8.4]
[1743601192054,0.03,126.4,126.39,304.5]
[1743601192433,0.03,126.4,126.39,323.14964886]
[1743601193545,0.03,126.4,126.39,343.29181043]
[1743601193940,0.03,126.4,126.39,323.14964886]
[1743601194138,0.03,126.4,126.39,304.5]
[1743601194545,0.03,126.4,126.39,296.1]
[1743601194753,0.03,126.4,126.39,304.5]
[1743601195837,27.7197,126.4,126.38,296.04]
[1743601197056,27.7197,126.4,126.39,8.38]
[1743601197836,0.03,126.4,126.39,8.38]
[1743601201552,0.03,126.4,126.31,26.7216]
[1743601201553,20.0,126.39,126.31,26.7216]
[1743601201739,20.0,126.39,126.32,18.64964886]
[1743601202350,27.6942,126.38,126.32,18.64964886]
[1743601202550,27.6942,126.38,126.31,6.7216]
[1743601202755,20.0,126.35,126.32,304.4]
[1743601203067,7.7514,126.37,126.32,304.4]
[1743601203458,1.5415,126.37,126.32,304.4]
[1743601203844,27.6942,126.38,126.32,304.4]
[1743601204043,27.6942,126.38,126.33,18.64964886]
[1743601204263,19.7816,126.38,126.33,18.64964886]
[1743601204865,7.912,126.39,126.34,6.67346157]
[1743601205047,7.912,126.39,126.36,0.14216157]
[1743601205377,0.03,126.4,126.38,18.79181043]
[1743601208166,0.03,126.4,126.37,8.38]
[1743601208470,0.03,126.4,126.38,8.34]
[1743601208677,20.0,126.39,126.38,8.34]
[1743601208840,20.0,126.39,126.32,296.04]
[1743601208841,20.0,126.38,126.32,296.04]
[1743601209649,20.14216157,126.37,126.32,296.04]
[1743601210255,20.0,126.37,126.32,296.04]
[1743601210446,27.6985,126.36,126.32,296.04]
[1743601210854,20.0,126.33,126.31,0.063]
[1743601211153,15.51756267,126.33,126.31,0.063]
[1743601212247,15.51756267,126.33,126.26,18.64964886]
[1743601212442,27.7074,126.32,126.26,18.64964886]
[1743601212669,27.7074,126.32,126.27,296.08]
[1743601213052,29.2123,126.32,126.27,296.08]
[1743601213256,29.2123,126.32,126.28,8.32]
[1743601214660,27.7074,126.32,126.28,8.32]
[1743601215576,7.9164,126.32,126.28,26.96964886]
[1743601215876,7.9164,126.32,126.29,18.64964886]
[1743601216070,7.9164,126.32,126.28,8.32]
[1743601216279,27.7074,126.32,126.28,8.32]
[1743601216776,27.7008,126.35,126.28,8.32]
[1743601216973,27.7008,126.35,126.29,18.64964886]
[1743601217759,67.2734,126.35,126.28,8.32]
[1743601217971,0.14216157,126.34,126.29,8.32]
[1743601218148,67.2734,126.35,126.29,8.32]
[1743601219676,27.7008,126.35,126.3,18.64964886]
[1743601220259,7.9132,126.37,126.33,0.14216157]
[1743601220456,7.9132,126.37,126.34,8.3]
[1743601220660,27.6963,126.37,126.34,8.3]
[1743601221189,27.83416157,126.39,126.3,18.64964886]
[1743601221395,67.39416157,126.39,126.3,18.64964886]
[1743601221974,6.3444,126.38,126.3,18.64964886]
[1743601222179,6.3444,126.38,126.31,296.16]
[1743601222394,6.3444,126.38,126.32,8.3]
[1743601223184,27.6963,126.37,126.32,8.3]
[1743601223380,27.6963,126.37,126.32,26.94964886]
[1743601223754,27.6963,126.37,126.33,18.64964886]
[1743601223967,7.9132,126.37,126.33,18.64964886]
[1743601224169,7.9132,126.37,126.34,0.14216157]
[1743601224683,7.912,126.39,126.34,20.14216157]
[1743601225564,0.03,126.4,126.34,20.14216157]
[1743601225771,0.03,126.4,126.34,0.14216157]
[1743601226466,0.03,126.4,126.34,20.14216157]
[1743601227065,0.03,126.4,126.34,0.14216157]
[1743601227468,20.03,126.4,126.33,18.64964886]
[1743601227794,20.03,126.4,126.35,8.28]
[1743601229274,0.03,126.4,126.36,18.64964886]
[1743601230060,0.03,126.4,126.37,20.14216157]
[1743601230366,0.03,126.4,126.38,18.64964886]
[1743601231071,0.03,126.4,126.39,0.14216157]
[1743601232291,0.03,126.4,126.37,0.14216157]
[1743601232488,0.03,126.4,126.36,18.64964886]
[1743601232986,0.03,126.4,126.37,304.3]
[1743601233188,0.03,126.4,126.38,8.26]
[1743601234102,0.03,126.4,126.38,26.90964886]
[1743601234392,0.03,126.4,126.38,8.26]
[1743601234602,0.03,126.4,126.38,26.90964886]
[1743601235288,0.03,126.4,126.39,18.64964886]
[1743601235791,0.03,126.4,126.38,8.26]
[1743601237689,0.03,126.4,126.39,18.64964886]
[1743601238796,0.03,126.4,126.39,38.79181043]
[1743601238996,0.03,126.44,126.43,0.14216157]
[1743601239201,0.03,126.44,126.43,47.05181043]
[1743601239388,0.03,126.44,126.43,53.26731043]
[1743601239585,0.03,126.44,126.43,61.17681043]
[1743601239791,0.03,126.44,126.43,53.26731043]
[1743601239990,0.03,126.44,126.43,62.71431043]
[1743601240189,7.9345,126.51,126.47,0.14216157]
[1743601240399,0.03,126.51,126.49,0.14216157]
[1743601240696,0.03,126.51,126.49,18.79181043]
[1743601241078,0.03,126.51,126.5,38.64964886]
[1743601241279,0.03,126.51,126.5,18.79181043]
[1743601241479,0.03,126.51,126.5,18.64964886]
[1743601242797,0.03,126.51,126.5,314.54964886]
[1743601242996,0.03,126.51,126.5,304.14]
[1743601246884,0.03,126.51,126.5,295.9]
[1743601247084,0.03,126.51,126.46,20.0]
[1743601247085,0.03,126.51,126.49,295.86]
[1743601248193,7.9345,126.51,126.49,295.86]
[1743601248396,7.9345,126.51,126.5,8.22]
[1743601249193,0.03,126.51,126.5,47.01181043]
[1743601250418,0.03,126.51,126.5,54.91691043]
[1743601250608,0.03,126.53,126.52,21.67676157]
[1743601250793,0.03,126.56,126.55,38.79181043]
[1743601250991,0.03,126.56,126.55,47.09181043]
[1743601251815,0.03,126.56,126.55,26.94964886]
[1743601252199,0.03,126.56,126.55,27.09181043]
[1743601252801,0.03,126.56,126.55,322.87181043]
[1743601252995,0.03,126.56,126.55,342.87181043]
[1743601254611,0.03,126.56,126.55,322.87181043]
[1743601254809,0.03,126.56,126.55,342.87181043]
[1743601255205,0.03,126.56,126.55,295.78]
[1743601255392,0.03,126.56,126.55,304.06]
[1743601257023,0.03,126.56,126.55,295.68]
[1743601257212,0.03,126.56,126.54,295.68]
[1743601258304,0.03,126.56,126.55,8.28]
[1743601262808,0.03,126.56,126.55,46.92964886]
[1743601263425,0.03,126.56,126.55,26.92964886]
[1743601263621,0.03,126.56,126.55,8.28]
[1743601264023,0.03,126.56,126.55,26.92964886]
[1743601264916,0.03,126.56,126.55,47.07181043]
[1743601265321,0.03,126.56,126.55,26.92964886]
[1743601265531,0.03,126.56,126.55,8.28]
[1743601266230,0.03,126.56,126.49,8.0628]
[1743601266231,0.03,126.56,126.49,6.5087]
[1743601266410,0.03,126.56,126.5,0.14216157]
[1743601266411,1.6379,126.56,126.5,0.14216157]
[1743601266610,7.902,126.55,126.5,20.14216157]
[1743601266826,7.902,126.55,126.49,6.5087]
[1743601267029,27.657,126.55,126.49,18.64964886]
[1743601267329,7.902,126.55,126.51,18.64964886]
[1743601267922,7.902,126.55,126.5,8.28]
[1743601267923,27.657,126.55,126.5,8.28]
[1743601269221,27.657,126.55,126.48,38.64964886]
[1743601269222,67.167,126.55,126.47,0.14216157]
[1743601269419,67.167,126.55,126.48,8.28]
[1743601269736,27.657,126.55,126.49,18.64964886]
[1743601269946,7.902,126.55,126.51,18.64964886]
[1743601270728,7.902,126.55,126.48,8.28]
[1743601270916,27.657,126.55,126.47,18.64964886]
[1743601271108,6.1659,126.54,126.48,8.28]
[1743601271519,6.1659,126.54,126.46,18.64964886]
[1743601271520,6.1659,126.54,126.49,8.28]
[1743601271761,27.657,126.55,126.49,8.28]
[1743601272411,67.167,126.55,126.49,8.28]
[1743601272849,27.657,126.55,126.5,295.64]
[1743601273633,7.902,126.55,126.51,18.64964886]
[1743601274134,27.657,126.55,126.51,18.64964886]
[1743601274632,0.03,126.56,126.52,8.28]
[1743601274836,1.5035,126.54,126.5,295.64]
[1743601276236,6.0429,126.53,126.5,295.64]
[1743601276832,7.9038,126.52,126.5,295.64]
[1743601277826,27.6635,126.52,126.49,295.68]
[1743601279027,27.6635,126.52,126.5,8.26]
[1743601280142,27.6635,126.52,126.49,295.68]
[1743601280747,19.7597,126.52,126.49,295.68]
[1743601281848,19.7597,126.52,126.5,8.24]
[1743601282227,19.7597,126.52,126.49,295.68]
[1743601282742,19.7597,126.52,126.49,295.7]
[1743601283046,19.7597,126.52,126.44,0.063]
[1743601283423,6.3945,126.51,126.44,0.063]
[1743601283740,1.5207,126.49,126.44,0.063]
[1743601285826,7.9038,126.52,126.46,18.64964886]
[1743601286022,41.037,126.53,126.49,0.14216157]
[1743601286023,7.9035,126.53,126.49,0.14216157]
[1743601286324,0.03,126.56,126.52,0.14216157]
[1743601286527,0.03,126.56,126.54,18.64964886]
[1743601286732,0.03,126.56,126.55,8.26]
[1743601287220,0.03,126.56,126.55,26.90964886]
[1743601288030,0.03,126.56,126.55,46.90964886]
[1743601288431,0.03,126.56,126.55,26.90964886]
[1743601288620,0.03,126.56,126.55,8.26]
[1743601289328,0.03,126.56,126.55,46.90964886]
[1743601289734,0.03,126.56,126.55,18.64964886]
[1743601289977,0.03,126.56,126.55,8.26]
[1743601291652,0.03,126.56,126.51,6.2859]
[1743601291950,0.03,126.56,126.5,0.063]
[1743601292132,6.5215,126.56,126.5,0.0001]
[1743601292635,20.0,126.53,126.5,0.0001]
[1743601293150,67.167,126.55,126.5,0.0001]
[1743601294330,7.902,126.55,126.5,38.64974886]
[1743601294533,7.902,126.55,126.51,8.3]
[1743601294943,27.657,126.55,126.51,8.3]
[1743601295136,0.03,126.56,126.51,8.3]
[1743601295657,0.03,126.56,126.5,0.0001]
[1743601296355,39.5396,126.56,126.5,0.0001]
[1743601296734,1.6552,126.51,126.47,295.68]
[1743601296934,1.6552,126.51,126.44,0.063]
[1743601297135,27.6679,126.5,126.45,8.3]
[1743601297352,67.1935,126.5,126.45,8.3]
[1743601297975,20.0,126.47,126.44,0.0001]
[1743601299157,7.9076,126.46,126.44,0.0001]
[1743601299675,67.2147,126.46,126.37,18.64964886]
[1743601300034,67.2147,126.46,126.36,6.1985]
[1743601301347,67.2147,126.46,126.37,18.64964886]
[1743601301757,27.6766,126.46,126.38,8.28]
[1743601301957,27.6766,126.46,126.39,18.64964886]
[1743601302348,27.6766,126.46,126.38,8.28]
[1743601302764,27.6766,126.46,126.39,295.82]
[1743601302977,27.6766,126.46,126.4,18.64964886]
[1743601303467,27.6701,126.49,126.4,18.64964886]
[1743601303859,27.6701,126.49,126.42,18.64964886]
[1743601304054,67.1989,126.49,126.43,8.28]
[1743601305358,27.6701,126.49,126.43,8.28]
[1743601305560,19.7644,126.49,126.43,8.28]
[1743601306473,19.7644,126.49,126.44,295.84]
[1743601307676,19.7644,126.49,126.45,8.26]
[1743601308169,19.7644,126.49,126.44,295.84]
[1743601309474,19.7644,126.49,126.45,8.26]
[1743601311083,20.0,126.46,126.44,295.84]
[1743601311454,7.9082,126.45,126.44,295.84]
[1743601312278,67.2201,126.45,126.4,295.86]
[1743601312522,1.6601,126.44,126.4,295.86]
[1743601312792,1.6601,126.44,126.41,8.24]
[1743601313497,7.9095,126.43,126.41,8.24]
[1743601314090,27.6832,126.43,126.4,295.86]
[1743601314590,27.6832,126.43,126.39,295.9]
[1743601314761,7.9095,126.43,126.39,295.9]
[1743601315268,27.6832,126.43,126.39,295.9]
[1743601315590,27.6766,126.46,126.39,295.9]
[1743601315798,27.6766,126.46,126.4,8.22]
[1743601316590,27.6766,126.46,126.41,18.79181043]
[1743601317292,27.6766,126.46,126.4,8.22]
[1743601317474,27.6766,126.46,126.41,18.64964886]
[1743601317675,19.769,126.46,126.41,18.64964886]
[1743601318886,27.907,126.47,126.41,18.64964886]
[1743601319394,47.6745,126.47,126.41,18.64964886]
[1743601319587,87.2095,126.47,126.41,18.64964886]
[1743601320291,87.2095,126.47,126.4,8.22]
[1743601320673,87.2095,126.47,126.41,18.64964886]
[1743601321484,47.6745,126.47,126.41,18.64964886]
[1743601322275,47.6745,126.47,126.42,0.14216157]
[1743601322790,87.2095,126.47,126.41,18.64964886]
[1743601323103,47.6745,126.47,126.42,295.92]
[1743601323403,47.6745,126.47,126.43,18.64964886]
[1743601323600,19.7947,126.49,126.43,18.64964886]
[1743601323910,0.03,126.49,126.44,0.14216157]
[1743601324114,0.03,126.49,126.46,18.79181043]
[1743601324784,0.03,126.49,126.48,18.79181043]
[1743601324975,0.03,126.49,126.48,24.98831043]
[1743601326100,0.03,126.49,126.48,24.84614886]
[1743601326288,0.03,126.49,126.47,0.14216157]
[1743601326797,0.03,126.49,126.46,18.64964886]
[1743601328482,0.03,126.49,126.45,8.2]
[1743601329301,0.03,126.49,126.43,0.14216157]
[1743601329302,0.03,126.49,126.46,8.18]
[1743601329483,0.03,126.49,126.42,295.92]
[1743601330012,27.7001,126.49,126.44,0.14216157]
[1743601330191,7.9357,126.49,126.44,0.14216157]
[1743601330500,7.9357,126.49,126.43,18.64964886]
[1743601330692,7.9357,126.49,126.44,8.18]
[1743601330889,27.7001,126.49,126.44,8.18]
[1743601331987,0.03,126.49,126.44,8.18]
[1743601333997,0.17216157,126.49,126.42,295.92]
[1743601334197,0.17216157,126.49,126.45,8.16]
[1743601334402,0.03,126.49,126.45,8.16]
[1743601334913,0.03,126.49,126.46,8.18]
[1743601337720,0.03,126.49,126.42,295.92]
[1743601338098,20.0,126.47,126.42,295.92]
[1743601338924,20.0,126.47,126.43,8.14]
[1743601339999,67.35686157,126.46,126.41,295.903]
[1743601340300,20.0,126.43,126.41,295.903]
[1743601341823,20.0,126.43,126.36,18.64964886]
[1743601342115,67.2414,126.41,126.35,0.063]
[1743601342710,67.2414,126.41,126.36,295.86]
[1743601343114,27.6876,126.41,126.36,295.86]
[1743601343313,27.6876,126.41,126.37,8.12]
[1743601343712,27.6876,126.41,126.36,295.86]
[1743601344015,27.6876,126.41,126.37,8.12]
[1743601344324,20.0,126.4,126.38,8.12]
[1743601344906,20.0,126.4,126.36,295.86]
[1743601345722,0.14216157,126.39,126.35,0.063]
[1743601346195,27.6942,126.38,126.35,0.063]
[1743601346600,27.6942,126.38,126.36,8.12]
[1743601347101,27.6942,126.38,126.35,0.063]
[1743601348322,19.7816,126.38,126.35,0.063]
[1743601349000,19.7816,126.38,126.36,8.12]
[1743601350420,20.0,126.36,126.35,0.0001]
[1743601350729,1.5928,126.37,126.3,296.0]
[1743601350730,20.14216157,126.35,126.3,296.0]
[1743601352303,27.7029,126.34,126.3,296.0]
[1743601353437,67.2786,126.34,126.3,296.0]
[1743601353929,27.7029,126.34,126.3,296.0]
[1743601354112,27.7029,126.34,126.31,8.1]
[1743601355015,31.27236294,126.33,126.31,8.1]
[1743601355336,31.27236294,126.32,126.31,8.1]
[1743601356133,31.27236294,126.32,126.3,296.0]
[1743601356425,39.18936294,126.31,126.3,296.0]
[1743601356835,58.98186294,126.31,126.3,296.1]
[1743601358123,58.98186294,126.31,126.3,304.2]
[1743601358433,58.98186294,126.31,126.3,296.1]